Cogmind - Beta 15 @@@ ROGUE MODE // 2025.10.04 @ 20:39:10 Player: DietSnapple Result: Destroyed by as-58585 with Assembled Heavy Rifle Performance ------------- Evolutions (0) 0 Regions Visited (2) 400 Robots Destroyed (11) 55 Value Destroyed (162) 162 Prototype IDs (0) 0 Alien Tech Used (0) 0 Bonus (0) 0 TOTAL SCORE: 617 Bonus ------- None Cogmind --------- Core Integrity 0/250 Matter 296/300 Energy 99/100 System Corruption 8% Temperature Cool (3) Movement Flying (40) Location -10/Mines Parts ------- > --- POWER (1) -------- (None) > --- PROPULSION (2) --- Flight Unit > --- UTILITY (2) ------ (None) > --- WEAPON (2) ------- Light Assault Rifle > --- INVENTORY (5) ---- Wheel Flight Unit Small Storage Unit Assault Rifle Shock Trap Peak State ------------ > --- POWER ------------ Ion Engine > --- PROPULSION ------- Wheel Wheel > --- UTILITY ---------- Small Storage Unit Seismic Detector > --- WEAPON ----------- Light Assault Rifle Light Assault Rifle > --- INVENTORY -------- (None) [Rating: 7] Favorites ----------- Power Ion Engine Engine Ion Engine Propulsion Wheel Wheel Wheel Flight Unit Flight Unit Utility Small Storage Unit Device Seismic Detector Storage Small Storage Unit Weapon Light Assault Rifle Ballistic Gun Light Assault Rifle Special Weapon Mining Laser Build | -11 -10 -10 ------- Run | Yrd Mat Min Slots Evolved . | . . . Power . | . . . Propulsion . | . . . Utility . | . . . Weapon . | . . . Parts Attached 14 | 7 3 4 Power 1 | 1 . . Engine 1 | 1 . . Core . | . . . Reactor . | . . . Propulsion 6 | 2 1 3 Treads . | . . . Leg . | . . . Wheel 3 | 2 1 . Hover . | . . . Flight 3 | . . 3 Utility 2 | 2 . . Device 1 | 1 . . Storage 1 | 1 . . Processor . | . . . Hackware . | . . . Protection . | . . . Artifact . | . . . Weapon 5 | 2 2 1 Energy Gun . | . . . Energy Cannon . | . . . Ballistic Gun 4 | 2 1 1 Ballistic Cannon . | . . . Launcher . | . . . Special Weapon 1 | . 1 . Impact Weapon . | . . . Slashing Weapon . | . . . Piercing Weapon . | . . . Special Melee Weapon . | . . . Unidentified Prototypes . | . . . Parts Lost 6 | . 4 2 Power 1 | . . 1 Propulsion 2 | . 1 1 Utility 1 | . 1 . Weapon 2 | . 2 . Highest Loss Streak 3 | . 3 2 To Critical Strikes . | . . . Average Backups 1 | . . 3 Power . | . . . Propulsion . | . . 1 Utility . | . . . Weapon . | . . . Tool/Special . | . . . Unused Backups . | . . . Power . | . . . Propulsion . | . . . Utility . | . . . Weapon . | . . . Tool/Special . | . . . Average Slot Usage (%) 86 | . 98 58 Engine 13 | . 14 13 Wheel 19 | . 27 3 Flight 7 | . . 23 Device 9 | . 13 . Storage 10 | . 14 3 Ballistic Gun 20 | . 23 14 Special Weapon 2 | . 4 . Peak Build Rating 7 | 7 7 5 Average Rating 5 | 4 6 4 On Entrance 4 | . 7 5 Naked Turns . | . . . Heaviest Build 13 | 13 13 12 Greatest Support 20 | 20 20 20 Greatest Overweight (x) 2 | . 1 2 Average Overweight (x) . | . . . Largest Inventory Capacity 8 | 8 8 8 Average Capacity 7 | 7 8 5 Most Carried 5 | . 2 5 Average Carried 1 | . . 3 Final Capacity 8 | 8 8 5 Final Carried 5 | . . 5 Class Distribution -------------------- 100% | Mutant Dominant Class ---------------- Mutant | -10/Materials Mutant | -10/Mines Resources | -11 -10 -10 ----------- Run | Yrd Mat Min Matter Collected 424 | 228 111 85 Remotely . | . . . Salvage Created 256 | 51 172 33 Parts 23 | 2 14 7 Haulers Intercepted . | . . . Recyclers Shooed 1 | . 1 . Parts Field Recycled . | . . . Retrieved Matter . | . . . Parts Self-Destructed . | . . . Prevented . | . . . Kills | -11 -10 -10 ------- Run | Yrd Mat Min Combat Hostiles Destroyed 8 | . 5 3 Guns 8 | . 5 3 Classes Destroyed 3 | 1 2 . Tunneler 3 | 2 1 . Swarmer 6 | . 3 3 Grunt 2 | . 2 . Best Kill Streak 3 | 2 3 3 Combat Bots Only 3 | . 3 3 Max Kills in Single Turn 1 | 1 1 1 Gunslinging . | . . . Exploded . | . . . Melee . | . . . Uniques/NPCs Destroyed . | . . . Combat | -11 -10 -10 -------- Run | Yrd Mat Min Hostile Shots Fired 67 | . 22 45 Missed 22 | . 5 17 Hits 45 | . 17 28 Melee 2 | . . 2 Projectile 43 | . 17 26 Critical Strikes 1 | . . 1 Damage Taken 785 | . 411 374 Core 257 | . 27 230 Absorbed by Shields . | . . . Core Remaining (%) 100 | 100 . . Volleys Fired 49 | 12 32 5 Largest 2 | 2 2 1 Hottest 100 | 40 100 20 Shots Fired 81 | 24 51 6 Gun 70 | 24 40 6 Cannon . | . . . Launcher . | . . . Special 11 | . 11 . Kinetic 70 | 24 40 6 Thermal 11 | . 11 . Explosive . | . . . Electromagnetic . | . . . Robot Hit Streak 9 | 9 4 2 Robot Miss Streak 3 | 2 3 2 Penetration Max . | . . . Secondary Targets 1 | . 1 . Max Gunslinging Chain 1 | . 1 . Shots Hit Robots 37 | 15 19 3 Core Hits 17 | 4 10 3 Critical Kills 1 | . 1 . Critical Parts Destroyed . | . . . Critical Strikes 1 | . 1 . Destroy 1 | . 1 . Melee Attacks . | . . . Impact . | . . . Slashing . | . . . Piercing . | . . . Sneak Attacks . | . . . Combat Hostiles . | . . . Follow-up Attacks . | . . . Damage Inflicted 323 | 124 161 38 Guns 318 | 124 156 38 Cannons . | . . . Explosions . | . . . Melee . | . . . Ramming 5 | . 5 . Kinetic 318 | 124 156 38 Thermal . | . . . Explosive . | . . . Electromagnetic . | . . . Impact . | . . . Slashing . | . . . Piercing . | . . . Highest Corruption 8 | . 8 8 Average Corruption 8 | . 8 8 Corruption Purged . | . . . Corruption Blocked . | . . . Effects 8 | . 1 7 Matter Fused 4 | . . 4 Heat Flow Errors 1 | . . 1 Energy Discharges 1 | . . 1 Data Loss (minor) 1 | . 1 . Misfires 1 | . . 1 Overload Shots . | . . . Overflow Damage . | . . . Projectiles . | . . . Explosions . | . . . Melee . | . . . Knockbacks . | . . . Impact . | . . . Kinetic . | . . . Secondary . | . . . Self-Inflicted Damage 2 | . 2 . Shots . | . . . Rammed 1 | . 1 . Targets Rammed 1 | . 1 . Kicked . | . . . Crushed . | . . . Highest Temperature 202 | . 100 202 Average Temperature 37 | . 28 74 Received Heat Transfer 209 | . 78 131 Siege Activations . | . . . Martial Activations . | . . . Shielding Activations . | . . . Robots Disrupted . | . . . Combat Hostiles . | . . . Robots Corrupted . | . . . Combat Hostiles . | . . . Parts Fried . | . . . Impact Corruptions . | . . . Robots Melted . | . . . Combat Hostiles . | . . . Parts Melted . | . . . Heat Transferred . | . . . Parts Sabotaged . | . . . Parts Stolen . | . . . Parts Stripped . | . . . Power Chain Reactions . | . . . Alert | -11 -10 -10 ------- Run | Yrd Mat Min Maximum Alert Level . | . . . Low Security (%) 100 | 100 100 100 Level 1 . | . . . Level 2 . | . . . Level 3 . | . . . Level 4 . | . . . Level 5 . | . . . High Security . | . . . Max Security . | . . . Peak Influence 70 | 5 70 70 Initial . | . . . Average 20 | . 16 39 Influence Increases 289 | 10 149 130 Destroy 0b10 Robot/C 160 | . 100 60 Destroy 0b10 Robot/NC 15 | 10 5 . Destroy Leader 30 | . 20 10 Destroy Structure 9 | . 9 . Partial Spotted 15 | . 15 . Lose Combat Pursuer 60 | . . 60 Influence Decreases 289 | 10 149 130 Time Decay 256 | 10 136 110 Lost Part 33 | . 13 20 Squads Dispatched . | . . . Investigation . | . . . Extermination . | . . . Reinforcement . | . . . Assault . | . . . Garrison . | . . . Intercept . | . . . Searches Triggered . | . . . Construction Impeded . | . . . Haulers Reinforced . | . . . Active Scanning Responses . | . . . Cargo Convoy Interrupts . | . . . Stealth | -11 -10 -10 --------- Run | Yrd Mat Min Distress Signals . | . . . Communications Jammed . | . . . Distress Signals . | . . . Times Spotted 38 | . 9 29 Peak Tracking Total 23 | . 3 23 Tactical Retreats 2 | . . 2 Traps | -11 -10 -10 ------- Run | Yrd Mat Min Traps Triggered . | . . . Indirectly . | . . . Trap Hack Attempts . | . . . Triggered . | . . . Disarmed . | . . . Reprogrammed . | . . . Reused . | . . . Traps Extracted . | . . . Installed . | . . . Triggered . | . . . Most Traps Carried 1 | . . 1 Machines | -11 -10 -10 ---------- Run | Yrd Mat Min Machines Disabled 1 | . 1 . Max in Single Turn 1 | . 1 . Machines Repaired . | . . . Machines Dismantled . | . . . Machines Sabotaged . | . . . Overloaded Fab Kills . | . . . Hacking | -11 -10 -10 --------- Run | Yrd Mat Min Machines Accessed . | . . . Terminals . | . . . Fabricators . | . . . Repair Stations . | . . . Recycling Units . | . . . Scanalyzers . | . . . Garrison Access . | . . . Total Hacks . | . . . Successful . | . . . Failed . | . . . Catastrophic . | . . . Database Lockouts . | . . . Manual . | . . . Terminals . | . . . Fabricators . | . . . Repair Stations . | . . . Recycling Units . | . . . Scanalyzers . | . . . Garrison Access . | . . . Terminal Hacks . | . . . Fabricator Hacks . | . . . Repair Station Hacks . | . . . Recycling Unit Hacks . | . . . Scanalyzer . | . . . Garrison Access Hacks . | . . . Unauthorized Hacks . | . . . Terminals . | . . . Fabricators . | . . . Repair Stations . | . . . Recycling Units . | . . . Scanalyzers . | . . . Garrison Access . | . . . Data Cores Recovered . | . . . Used . | . . . Hacking Detections . | . . . Full Trace Events . | . . . Feedback Events . | . . . Feedback Blocked . | . . . Robot Schematics Acquired . | . . . Robots Built . | . . . Authchips . | . . . Time . | . . . Total Robot Build Rating . | . . . Part Schematics Acquired . | . . . Parts Built . | . . . Authchips . | . . . Time . | . . . Total Part Build Rating . | . . . Parts Repaired . | . . . Time . | . . . Parts Recycled . | . . . Recycled Matter . | . . . Retrieved Matter . | . . . Retrieved Components . | . . . Parts Scanalyzed . | . . . Part Schematics Acquired . | . . . Parts Damaged . | . . . Bothacking | -11 -10 -10 ------------ Run | Yrd Mat Min Used RIF Installer . | . . . Robots Hacked . | . . . Non-combat . | . . . Combat . | . . . Robot Hacks Applied . | . . . Relay Couplers Released . | . . . Fabnet Peak Effective % . | . . . Robots Rewired . | . . . Allies Hacked . | . . . Hacks Repelled . | . . . Allies | -11 -10 -10 -------- Run | Yrd Mat Min Total Allies . | . . . Largest Group . | . . . Highest-Rated Group . | . . . Highest-Rated Ally . | . . . Total Orders . | . . . Ally Attacks . | . . . Total Damage . | . . . Kills . | . . . Allies Corrupted . | . . . Allies Melted . | . . . Intel | -11 -10 -10 ------- Run | Yrd Mat Min Active Infowar (turns) 498 | 22 476 . Seismic 498 | 22 476 . Robot Analysis Total . | . . . Derelict Logs Recovered 1 | . . 1 Drone Launches . | . . . Drone Recoveries . | . . . Exploration | -11 -10 -10 ------------- Run | Yrd Mat Min Turns Passed 824 | 113 488 223 Spaces Moved 1007 | 99 469 439 Core 26 | 26 . . Treads . | . . . Legs . | . . . Wheels 549 | 73 469 7 Hover . | . . . Flight 432 | . . 432 Fastest Speed 37 | 50 80 37 Average Speed 62 | 72 80 41 Slowest Speed 205 | 80 95 205 Overloaded Moves . | . . . Propulsion Burnouts . | . . . Robots Hopped 7 | . . 7 Potential Cave-ins . | . . . Cave-ins Triggered 1 | . 1 . Exploration Rate (%) 43 | 4 57 68 Regions Visited 2 Branch Regions 1 Pre-discovered Areas 1 | . . 1 Known Exits Taken . | . . . Unknown Exits Taken 2 | 1 1 . Scrap Searched . | . . . Spaces Dug 9 | . 9 . Terrain Destroyed 10 | . 10 . Melee . | . . . Projectile 10 | . 10 . AOE . | . . . Terrain Rammed . | . . . Walls Destroyed . | . . . Machines Disabled . | . . . Actions | -11 -10 -10 --------- Run | Yrd Mat Min Total 1101 | 117 514 470 Wait 27 | . 3 24 Move 993 | 98 468 427 Hop 5 | . . 5 Pick Up 5 | . 3 2 Fast Attach 9 | 7 1 1 Attach 3 | . 2 1 Detach 4 | . 1 3 Swap 3 | . 1 2 Drop 2 | . 2 . Fire 49 | 12 32 5 Melee . | . . . Ram 1 | . 1 . Kick . | . . . Crush . | . . . Escape Stasis . | . . . Rewire . | . . . Trap . | . . . Miscellaneous . | . . . Route ------- -11/Scrapyard -10/Materials (discovered 3 exits: [*Mat] / [*Min x2]) -10/Mines History --------- Turn | Location | Event 11 | -11/Scrapyard | Discovered new exit (range 16) 114 | -11/Scrapyard | Entered Materials 140 | -10/Materials | Discovered new exit (range 6) 305 | -10/Materials | Build established: Mutant 387 | -10/Materials | Discovered new exit (range 8) 580 | -10/Materials | Discovered new exit (range 7) 590 | -10/Materials | Crushed by falling debris 602 | -10/Materials | Entered Mines 621 | -10/Mines | Lost 3 parts (1u2w) 669 | -10/Mines | Learned location of Storage (-9) 785 | -10/Mines | Assembled infested the area 802 | -10/Mines | Found a hidden stash of uninstalled traps 818 | -10/Mines | Core integrity fell below 50% 825 | -10/Mines | Core integrity fell below 20% 825 | -10/Mines | Destroyed by as-58585 with Assembled Heavy Rifle Last Messages --------------- 00638_ System corrupted: Matter fused (-10). 00644_ Acquired Lgt. Assault Rifle. 00660_ System corrupted: Matter fused (-7). 00664_ K-01 Serf collects debris. 00669_ Acquired derelict log, extracted data. World map updated: -9/Storage. 00675_ System corrupted: Heat flow error (+218). 00705_ System corrupted: Matter fused (-6). 00763_ System corrupted: FCS attempts to trigger Lgt. Assault Rifle. 00763_ System corrupted: Lgt. Assault Rifle misfires. 00773_ Critical hit (Burn: +37). 00785_ ALERT: Infestation in the mines, dispatching Demolisher response squad. 00801_ System corrupted: Energy discharge (-67). 00802_ A stash of uninstalled traps is collected here! 00803_ Acquired Shock Trap. 00815_ Ion Engine destroyed. 00818_ Flight Unit destroyed. [Achievement: Hunted] 00824_ Acquired 63 matter. Map ----- +----------------------------------------------------+ | | | | | | | ?????????????????????????????????????? | | ?????????????????????????????????????? | | ##???????????????????????????????????? | | ##??????????????????????????????????? | | #??????????????????????????????????? | | #??????????????????????????????????? | | #??????????????????????????????????? | | ##??###### #????????????????????????? | | #???# #????????????????????????? | | #???# ######????????????????????????? | | #???# #???####??????????????????????? | | ##???# ##### ##?????????????????????? | | #???## ## ##????????????????????? | | ##### #########????????????? | | ## #????????????? | | #????????????? | | ##### #?????????##?? | | ##???# #??????? #?? | | ### ####????# #??#### #?? | | ## ##?# ###?????### #?# #?? | | ?#####?## #??????## = ## #?? | | ???????# ##????## = #?? | | ??????## ##???# a*aa@ #?? | | ????### #???# ## #??? | | ???## #???# aaa ##????#??? | | ?### ##??# aaa #????????? | | ## ##??# #a ##????????? | | # ##???# %##a ##?????????? | | ##????## #?# #??????????? | | ## #??????#####??#a #??????????? | | ?## #?????????????#!a#??????????? | | ??# #????????????#a*#??????????? | | ? ??????????#%a#??????????? | | ????????#a=#??????????? | | ???????# a#??????????? | | ### ???????$a???????????? | | ## ##??# ??????? $???????????? | | ?## #????# ?????#? ???????????? | | #?## ##?????## ???? #??????????????? | | #??####???#########?? #??????????????? | | #?????????# #?? #??????????????? | | #?????????# """#?? #??????????????? | | ??????????# ""???? ##?????????????? | | ??????????# "????# ####??????????? | | ??????????# ???## ???????????? | | ???????##### ###### #??????????????? | | ???????# #??????????????? | +----------------------------------------------------+ Best States ------------- Heat Dissipation 25 Energy Generation 10 Energy Capacity 250 Matter Stores 300 Matter Capacity 300 Sight Range 16 Terrain Scan Density 10 Evasion (%) 62 Item Schematics ----------------- None Robot Schematics ------------------ None Fabricated ------------ Nothing Repaired ---------- Nothing Alien Tech Used ----------------- None Achievements -------------- Hunted Unlikely Earthworm Challenges ------------ None Game ------ Seed MiningLegMace Manual? 0 Play Time 00:12:23 Cumulative 9.4 hours Start 2025.10.04 @ 20:29:25 End 2025.10.04 @ 20:39:10 Sessions 1 Manual Loads 0 Difficulty Rogue Special Mode None Game No. 27 Rogue 20 Adventurer 7 Explorer 0 Win Type - Total 0 Types 0/0/0/0/0/0/0/0/0/0 Lore% 2 Gallery% 13 Achievement% 12 Wizard Run 0 Options --------- Layout 1 ASCII 0 Keyboard 1 Movement Vi Keybinds 0 Fullscreen 1 Font 24/Smallcaps Map View 76x35 Zoom Use 0% Tactical HUD 1 Map Filters NONE Filters NONE Steam 1 RUN: 3f9a06f2-2acc-4c3d-b6fa-5360c7e191d0